bitfinex/quotes_ETHUSD_20260216
["timestamp","ask_amount","ask_price","bid_price","bid_amount"]
[1771241485580,2.32607924,1974.6,1973.7,0.48927557]
[1771241488625,2.81260191,1974.6,1973.7,0.48927557]
[1771241489305,0.48652267,1974.5,1973.7,0.001]
[1771241490508,1.26608819,1974.6,1973.7,0.48927557]
[1771241490679,1.059,1974.5,1973.7,0.48927557]
[1771241491407,1.059,1974.5,1973.8,0.001]
[1771241493330,1.059,1974.5,1973.8,0.48927557]
[1771241500904,0.0011,1974.7,1973.8,0.48927557]
[1771241502732,0.48762267,1974.7,1973.8,0.48927557]
[1771241503123,0.48762267,1974.7,1973.8,0.001]
[1771241503801,0.48762267,1974.7,1973.8,0.46793077]
[1771241505413,1.7538874,1974.6,1973.9,0.001]
[1771241508138,1.2671635,1974.7,1973.9,0.49728601]
[1771241508539,0.0011,1974.7,1973.9,0.49728601]
[1771241509243,1.26712453,1974.7,1973.9,0.49728601]
[1771241510442,0.0011,1974.7,1973.9,0.49728601]
[1771241515020,1.74839937,1975.4,1974.1,0.49628601]
[1771241515225,0.48279181,1975.3,1974.1,0.49628601]
[1771241515622,1.74839937,1975.4,1974.1,0.49628601]
[1771241515954,0.48279181,1975.3,1974.1,0.49628601]
[1771241516547,1.74834464,1975.5,1974.1,0.49628601]
[1771241517254,2.32044014,1975.6,1974.1,0.49628601]
[1771241517454,2.80323195,1975.6,1974.1,0.49628601]
[1771241518028,1.53779181,1975.6,1974.1,0.49628601]
[1771241518353,1.055,1975.6,1974.3,0.49628601]
[1771241518651,2.32043845,1975.6,1974.3,0.49628601]
[1771241519042,0.48279181,1975.3,1974.3,0.49628601]
[1771241519421,0.48389181,1975.2,1974.3,0.49628601]
[1771241520168,0.0011,1975.2,1974.3,0.49628601]
[1771241520531,0.48389181,1975.2,1974.1,0.49628601]
[1771241521127,0.48279181,1975.0,1974.0,0.49728601]
[1771241522246,0.48279181,1974.8,1974.0,0.001]
[1771241523330,1.054,1974.9,1974.0,0.49728601]
[1771241524051,0.0011,1975.2,1974.0,0.49728601]
[1771241524640,0.0011,1975.2,1974.3,0.49628601]
[1771241526163,0.48389181,1975.2,1974.3,0.49628601]
[1771241527760,0.0011,1975.2,1974.3,0.49628601]
[1771241528562,1.26680381,1975.2,1974.3,0.49628601]
[1771241528760,1.74959562,1975.2,1974.3,0.49628601]
[1771241529269,0.48389181,1975.2,1974.3,0.49628601]
[1771241530166,0.0011,1975.2,1974.3,0.49628601]
[1771241532801,0.48389181,1975.2,1974.4,0.001]
[1771241533116,0.48389181,1975.1,1974.4,0.001]
[1771241534014,0.0011,1975.1,1974.4,0.001]
[1771241534497,0.0011,1975.1,1974.4,0.48194801]
[1771241538879,0.45616481,1975.1,1974.4,0.001]
[1771241539773,0.0011,1975.1,1974.4,0.48194801]
[1771241541907,0.0011,1975.1,1974.4,0.001]
[1771241543607,0.0011,1975.1,1974.4,0.48194801]
[1771241545623,0.0011,1975.1,1974.4,0.001]
[1771241545914,0.45506481,1975.0,1974.4,0.001]
[1771241548126,1.26588688,1974.9,1974.4,0.001]
[1771241548329,1.72088759,1975.0,1974.4,0.001]
[1771241548635,0.45506481,1974.9,1974.4,0.001]
[1771241550294,0.45506481,1974.7,1974.4,0.001]
[1771241550489,0.45506481,1975.0,1974.4,0.001]
[1771241550684,1.045,1974.9,1974.4,0.001]
[1771241552520,0.45506481,1974.8,1974.4,0.001]
[1771241553021,0.45506481,1974.8,1974.0,0.001]
[1771241554196,1.36706481,1975.0,1974.0,0.48194801]
[1771241554408,1.046,1974.9,1974.0,0.48194801]
[1771241556339,2.31189496,1974.9,1974.0,0.48194801]
[1771241556747,0.45506481,1974.8,1974.0,0.001]
[1771241558839,0.45506481,1974.6,1973.9,0.001]
[1771241559217,0.45506481,1974.4,1973.9,0.001]
[1771241559638,0.45506481,1974.4,1973.3,0.48194801]
[1771241559639,0.45506481,1974.0,1973.3,0.001]
[1771241559951,0.45506481,1973.8,1973.3,0.001]
[1771241560837,1.72172134,1973.7,1973.3,0.001]
[1771241561144,0.45506481,1973.6,1972.7,0.001]
[1771241563052,0.45506481,1973.4,1972.7,0.001]
[1771241563614,1.50206481,1973.3,1972.7,0.001]
[1771241565740,2.31394334,1973.3,1972.7,0.001]
[1771241565938,1.26665653,1973.7,1972.9,0.4514214]
[1771241566118,1.048,1973.6,1972.9,0.4514214]
[1771241566316,1.26665653,1973.7,1972.9,0.4514214]
[1771241566628,1.048,1973.7,1972.9,0.4514214]
[1771241567021,1.048,1973.7,1972.9,0.001]
[1771241568022,1.26672071,1973.6,1972.9,0.001]
[1771241568623,1.74163806,1973.6,1972.9,0.001]
[1771241571124,0.47491735,1973.5,1972.9,0.001]
[1771241571958,0.47491735,1973.5,1972.7,0.001]
[1771241572135,0.47491735,1973.3,1972.7,0.001]
[1771241572331,1.74163806,1973.6,1972.7,0.001]
[1771241572540,1.048,1973.7,1972.7,0.001]
[1771241573352,1.048,1973.7,1973.0,0.001]
[1771241574250,1.52291735,1973.7,1973.0,0.001]
[1771241576163,0.47491735,1973.5,1973.0,0.001]
[1771241576546,1.26672071,1973.6,1973.0,0.001]
[1771241577067,0.47491735,1973.5,1973.0,0.001]
[1771241577364,1.26672071,1973.6,1973.0,0.001]
[1771241577744,2.17972071,1973.6,1973.0,0.001]
[1771241578069,2.65463806,1973.6,1973.0,0.001]
[1771241578374,0.47491735,1973.5,1973.0,0.001]
[1771241579068,2.17972071,1973.6,1973.0,0.001]
[1771241581480,0.913,1973.6,1973.0,0.45487254]
[1771241581644,2.17972969,1973.6,1973.0,0.45487254]
[1771241582875,2.17972969,1973.6,1973.0,0.001]
[1771241583042,2.65464704,1973.6,1973.0,0.001]
[1771241583469,2.17972969,1973.6,1973.0,0.001]
[1771241585070,2.65464704,1973.6,1973.0,0.001]
[1771241586973,2.65574704,1973.6,1973.0,0.001]
[1771241590851,0.47491735,1973.5,1973.0,0.001]
[1771241592480,0.47491735,1973.5,1972.8,0.001]
[1771241592880,1.26684909,1973.4,1972.8,0.001]
[1771241593889,1.75344308,1973.4,1972.8,0.001]
[1771241595873,0.48659399,1973.3,1972.8,0.001]
[1771241596072,1.068,1973.2,1972.8,0.001]
[1771241597572,0.48659399,1973.1,1972.1,0.48139786]
[1771241597892,1.26710593,1973.0,1972.3,0.48239786]
[1771241598073,5.06842372,1973.1,1972.3,0.48239786]
[1771241598074,1.069,1972.9,1972.3,0.48239786]
[1771241599594,1.069,1972.9,1972.8,0.001]
[1771241599800,1.069,1972.9,1972.6,0.001]
[1771241600088,1.26723438,1972.8,1972.6,0.001]
[1771241600270,1.26723438,1972.8,1972.3,0.001]
[1771241602473,1.75382837,1972.8,1972.3,0.001]
[1771241603275,1.75382837,1972.8,1972.0,0.48139786]
[1771241603996,1.26736287,1972.6,1972.0,0.48139786]
[1771241605102,1.26723438,1972.8,1972.0,0.48139786]
[1771241611086,1.75382837,1972.8,1972.0,0.48139786]
[1771241611286,1.26723438,1972.8,1972.0,0.48139786]
[1771241611792,1.26723438,1972.8,1972.1,0.48239786]
[1771241612109,7.41818848,1972.7,1972.1,0.48239786]
[1771241613077,1.26736287,1972.6,1972.1,0.48239786]
[1771241614703,7.41708848,1972.5,1972.0,0.001]
[1771241615398,1.079,1972.4,1972.0,0.001]
[1771241619808,7.41708848,1972.3,1971.8,0.001]
[1771241620107,0.0011,1972.7,1972.2,0.48139786]
[1771241620307,6.3311,1973.5,1972.7,0.48139786]
[1771241620308,0.0011,1973.5,1972.7,0.48139786]
[1771241620480,2.13989198,1973.5,1972.7,0.48139786]
[1771241620683,1.26685419,1973.4,1972.7,0.48139786]
[1771241620877,7.41708848,1973.3,1972.7,0.48139786]
[1771241621088,0.0011,1972.9,1972.3,0.48139786]
[1771241621307,0.0011,1973.0,1972.3,0.48139786]
[1771241621508,0.0022,1973.0,1972.3,0.48139786]
[1771241622294,0.0011,1973.0,1972.3,0.48139786]
[1771241622493,0.0022,1973.0,1972.3,0.48139786]
[1771241623410,0.0011,1972.9,1972.3,0.48139786]
[1771241623786,0.0011,1972.8,1972.3,0.48139786]
[1771241623985,0.0011,1972.9,1972.3,0.48139786]
[1771241624430,0.0011,1972.8,1972.3,0.48139786]
[1771241624590,0.0011,1973.0,1972.3,0.48139786]
[1771241624591,0.0011,1972.9,1972.3,0.48139786]
[1771241625006,0.0011,1972.8,1972.3,0.48139786]
[1771241625215,0.0022,1972.9,1972.3,0.48139786]
[1771241626226,0.0011,1972.8,1972.3,0.48139786]
[1771241627537,0.0011,1972.9,1972.3,0.48139786]
[1771241627712,0.0022,1972.9,1972.3,0.48139786]
[1771241633928,0.0011,1972.8,1972.3,0.48139786]
[1771241634343,0.0011,1972.7,1972.3,0.48139786]
[1771241634534,0.0011,1972.8,1972.3,0.48139786]
[1771241635017,0.0011,1972.7,1972.3,0.48139786]
[1771241635337,0.0011,1972.8,1972.3,0.48139786]
[1771241635837,0.0011,1972.9,1972.3,0.48139786]
[1771241635838,0.0011,1972.7,1972.3,0.48139786]
[1771241636147,0.0011,1972.8,1972.3,0.48139786]
[1771241636508,0.0011,1972.7,1972.3,0.48139786]
[1771241636714,0.0011,1972.8,1972.3,0.48139786]
[1771241637537,0.0011,1972.8,1972.4,0.001]
[1771241637741,0.0022,1972.8,1972.4,0.001]
[1771241640424,0.0022,1972.8,1972.4,0.47645787]
[1771241640623,0.48079106,1972.8,1972.4,0.001]
[1771241640924,0.0022,1972.8,1972.4,0.001]
[1771241642014,0.0011,1972.8,1972.4,0.001]
[1771241644224,0.0011,1972.7,1972.4,7.41517156]
[1771241645847,0.0011,1973.0,1972.6,7.88962943]
[1771241647244,0.0011,1973.2,1972.8,7.41417156]
[1771241647832,0.0011,1973.2,1972.8,7.88962943]
[1771241649573,1.094,1973.3,1973.0,7.41417156]
[1771241649859,0.0011,1973.5,1972.8,7.88962943]
[1771241650226,0.0011,1973.5,1972.9,0.47545787]
[1771241652122,0.0011,1973.5,1973.0,7.41417156]
[1771241652323,0.0011,1973.1,1973.0,7.41417156]
[1771241652553,0.0011,1973.5,1973.0,7.41417156]
[1771241652861,0.0011,1973.2,1973.0,7.88962943]
[1771241653148,0.0011,1973.5,1973.0,7.88962943]
[1771241653447,0.0011,1973.4,1973.0,7.88962943]
[1771241656222,0.0011,1973.4,1972.9,0.001]
[1771241656223,0.47397771,1973.4,1972.9,0.001]
[1771241659532,0.47287771,1973.3,1972.9,0.001]
[1771241662250,0.0011,1973.4,1972.9,0.001]
[1771241662759,1.74083862,1973.4,1972.9,0.001]
[1771241662947,0.47287771,1973.3,1972.9,0.001]
[1771241664462,1.73979256,1973.3,1972.9,0.001]
[1771241664652,0.47287771,1973.2,1972.9,0.001]
[1771241665357,7.41527156,1973.4,1972.9,0.001]
[1771241665567,0.0011,1973.4,1972.9,0.001]
[1771241665937,0.0011,1973.4,1972.9,0.46099059]
[1771241666459,0.0011,1973.2,1972.9,0.46099059]
[1771241667255,0.0011,1973.2,1972.9,0.001]
[1771241670261,0.47397771,1973.2,1972.9,0.001]
[1771241670770,0.47287771,1973.1,1972.6,0.001]
[1771241673155,8.68230247,1973.2,1972.6,0.001]
[1771241673360,9.15518018,1973.2,1972.6,0.001]
[1771241673665,0.47287771,1973.1,1972.6,0.001]
[1771241674870,0.47287771,1972.9,1972.6,0.001]
[1771241675636,0.47287771,1973.1,1972.6,0.001]
[1771241675871,1.26810533,1973.2,1972.6,0.001]
[1771241676081,1.74098304,1973.2,1972.6,0.001]
[1771241677686,0.47287771,1973.1,1972.4,0.001]
[1771241678976,0.47287771,1972.9,1972.4,0.001]
[1771241679159,0.47287771,1972.7,1972.4,0.001]
[1771241679363,0.47287771,1972.7,1972.5,0.001]
[1771241679668,1.26736287,1972.6,1972.3,0.001]
[1771241679858,1.74024058,1972.6,1972.3,0.001]
[1771241680675,0.47287771,1972.6,1972.3,0.001]
[1771241680881,1.2673489,1972.7,1972.3,0.001]
[1771241681373,1.74022661,1972.7,1972.3,0.001]
[1771241682389,0.47287771,1972.6,1972.3,0.001]
[1771241684382,1.54911367,1972.8,1972.3,0.001]
[1771241684987,1.26722108,1972.9,1972.3,0.001]
[1771241685166,1.103,1972.8,1972.3,0.45743695]
[1771241685677,0.45311367,1972.7,1972.3,0.001]
[1771241686387,0.45311367,1972.5,1972.1,0.001]
[1771241687166,1.26736287,1972.6,1972.1,0.001]
[1771241687167,1.72275832,1972.6,1972.1,0.001]
[1771241687384,0.45539545,1972.5,1972.1,0.001]
[1771241687985,1.105,1972.5,1972.1,0.001]
[1771241688482,2.37243405,1972.5,1972.1,0.001]
[1771241688682,1.105,1972.5,1972.1,0.001]
[1771241688878,5.52419109,1972.9,1972.1,0.4995001]
[1771241689072,1.105,1972.6,1972.1,0.4995001]
[1771241690657,2.82776522,1972.6,1972.1,0.001]
[1771241690990,2.82776522,1972.6,1972.2,0.001]
[1771241691190,1.56039545,1972.6,1972.2,0.001]
[1771241691389,2.82777026,1972.6,1972.2,0.001]
[1771241691996,0.45539545,1972.5,1972.2,0.001]
[1771241692162,0.45539545,1972.5,1972.1,0.001]
[1771241694600,1.72285839,1972.5,1972.1,0.001]
[1771241694806,1.105,1972.6,1972.1,0.001]
[1771241695262,1.107,1972.6,1972.1,0.4995001]
[1771241695663,1.107,1972.6,1972.1,0.001]
[1771241696091,0.45539545,1972.5,1972.1,0.001]
[1771241696870,1.26749138,1972.4,1972.1,0.001]
[1771241697187,1.107,1972.6,1972.1,7.9154661]
[1771241697576,1.107,1972.6,1972.1,0.4995001]
[1771241698892,0.0011,1973.0,1972.6,0.4985001]
[1771241699080,0.0011,1973.0,1972.7,7.9144661]
[1771241700116,0.0011,1973.0,1972.8,0.4985001]
[1771241700318,0.0011,1973.0,1972.4,0.4985001]
[1771241700722,0.45649545,1973.0,1972.2,0.4985001]
[1771241701080,1.72360483,1973.0,1972.2,0.4985001]
[1771241701308,0.45649545,1973.0,1972.2,0.4985001]
[1771241701506,1.72360584,1973.0,1972.2,0.4985001]
[1771241701733,0.45539545,1972.9,1972.1,7.416966]
[1771241701895,0.45539545,1972.9,1972.1,0.001]
[1771241702096,0.45539545,1972.9,1972.1,0.4995001]
[1771241702312,0.45539545,1972.9,1972.1,0.001]
[1771241702702,0.45539545,1972.9,1972.1,0.4995001]
[1771241703221,1.26821039,1973.0,1972.2,0.4995001]
[1771241703420,0.0011,1972.9,1972.2,0.4995001]
[1771241706383,0.45649545,1972.9,1972.2,0.001]
[1771241706887,0.45649545,1972.9,1972.2,0.4995001]
[1771241707082,0.0011,1972.9,1972.2,0.4995001]
[1771241711310,0.45649545,1972.9,1972.2,0.001]
[1771241712016,0.0011,1972.9,1972.2,0.4995001]
[1771241714133,0.46324404,1972.9,1972.2,0.4995001]
[1771241715124,1.73044696,1972.9,1972.2,0.001]
[1771241715708,1.73044696,1972.9,1972.3,0.001]
[1771241715907,0.0011,1972.8,1972.3,0.001]
[1771241716335,0.46324404,1972.8,1972.3,0.001]
[1771241717232,1.72944266,1972.7,1972.3,0.001]
[1771241718538,0.46214404,1972.6,1972.3,0.001]
[1771241719323,1.72956399,1972.6,1972.3,0.001]
[1771241720326,0.46214404,1972.5,1972.3,0.001]
[1771241724815,10.25316148,1972.7,1972.3,0.001]
[1771241726644,0.46214404,1972.6,1972.3,0.001]
[1771241727746,7.4176722,1972.5,1972.2,0.001]
[1771241727949,0.46214404,1972.6,1972.4,0.001]
[1771241728112,0.46214404,1972.6,1972.2,0.001]
[1771241728315,0.0011,1972.5,1972.2,0.001]
[1771241729665,0.0011,1972.5,1970.7,1.26858192]
[1771241729666,0.46214404,1972.3,1971.1,4.50829567]
[1771241729821,0.46214404,1972.3,1971.0,0.913]
[1771241729822,7.4176722,1972.0,1971.5,0.47185681]
[1771241730624,8.90131034,1972.2,1971.5,0.47185681]
[1771241730960,1.48363814,1972.2,1971.5,0.47185681]
[1771241733357,2.75125897,1972.2,1971.5,0.47185681]
[1771241733533,10.16893117,1972.2,1971.5,0.47185681]
[1771241734830,8.90131034,1972.2,1971.5,0.47185681]
[1771241735745,1.48363814,1972.2,1971.5,0.47185681]
[1771241738254,10.16893046,1972.2,1971.5,0.47185681]
[1771241738669,8.90131034,1972.2,1971.5,0.47185681]
[1771241738864,1.48363814,1972.2,1971.5,0.47185681]
[1771241739442,0.36263814,1972.2,1971.5,0.47185681]
[1771241741056,0.36263814,1972.2,1971.7,0.47185681]
[1771241744283,1.129,1972.4,1971.7,0.47185681]
[1771241744284,1.26756002,1972.3,1971.7,0.47185681]
[1771241744480,9.16528661,1972.3,1971.6,0.001]
[1771241745592,9.16528661,1972.3,1971.6,0.50000549]
[1771241746261,0.36263814,1972.2,1971.6,0.50000549]
[1771241753087,0.0011,1972.1,1971.6,0.50000549]
[1771241755479,0.0011,1972.2,1971.7,0.49790045]
[1771241757564,1.1301,1972.4,1971.7,0.49790045]
[1771241760388,7.41852638,1972.2,1971.7,0.49790045]
[1771241760560,7.88795057,1972.2,1971.6,0.49890045]
[1771241761402,9.01805057,1972.4,1971.6,0.49890045]
[1771241761706,1.1301,1972.4,1971.7,0.49790045]
[1771241762204,0.0011,1972.4,1972.1,0.49790045]
[1771241763671,0.0011,1972.6,1972.1,0.49790045]
[1771241764570,0.0011,1972.6,1972.3,0.49790045]
[1771241765092,0.0011,1972.8,1972.3,0.49790045]
[1771241766082,7.41962638,1972.8,1972.1,0.49790045]
[1771241766281,0.0011,1972.4,1972.1,0.49790045]
[1771241766486,7.88905057,1972.8,1972.1,0.49790045]
[1771241767164,0.47052419,1972.8,1972.1,0.49790045]
[1771241767977,0.46942419,1972.6,1971.8,0.49790045]
[1771241769983,0.46942419,1972.4,1971.7,0.001]
[1771241770271,7.88795057,1972.3,1971.7,0.001]
[1771241770620,7.41852638,1972.1,1971.7,0.001]
[1771241770910,7.04450876,1972.1,1971.7,0.001]
[1771241771979,0.46942419,1972.2,1971.7,0.001]
[1771241772982,1.73705511,1972.2,1971.7,0.001]
[1771241773171,7.88795057,1972.1,1971.7,0.001]
[1771241774282,0.47696592,1972.0,1971.7,0.001]
[1771241775363,9.16298368,1972.4,1971.7,0.001]
[1771241775589,0.47696592,1972.4,1971.7,0.49552161]
[1771241776576,2.04,1972.5,1971.7,0.49552161]
[1771241777183,3.30743841,1972.5,1971.7,0.49552161]
[1771241777588,10.72596479,1972.5,1971.7,0.49552161]
[1771241777791,11.20293071,1972.5,1971.7,0.49552161]
[1771241777978,11.20293071,1972.5,1971.8,0.001]
[1771241778183,11.20403071,1972.5,1971.8,0.001]
[1771241778478,9.45962638,1972.5,1971.8,0.49552161]
[1771241778686,1.1271,1972.5,1971.8,0.49552161]
[1771241778885,2.39453213,1972.5,1971.8,0.49552161]
[1771241779100,7.8954923,1972.4,1971.8,0.001]
[1771241779314,0.47696592,1972.3,1971.8,0.001]
[1771241782421,0.47696592,1972.1,1971.8,0.001]
[1771241783906,1.74468893,1972.1,1971.8,0.001]
[1771241784279,0.47696592,1972.1,1971.8,0.001]
[1771241784702,1.74466709,1972.1,1971.8,0.001]
[1771241784882,0.47696592,1972.0,1971.8,0.001]
[1771241785089,1.26770117,1972.1,1971.8,0.001]
[1771241785292,0.47696592,1972.2,1971.8,0.001]
[1771241786015,1.74448822,1972.4,1971.8,0.001]
[1771241786326,0.47696592,1972.3,1971.8,0.001]
[1771241788406,0.47696592,1972.1,1971.8,0.001]
[1771241790090,0.47696592,1972.1,1971.9,0.001]
[1771241790513,1.74465653,1972.1,1971.9,0.001]
[1771241793690,1.15,1972.0,1971.9,0.001]
[1771241795007,0.0011,1972.2,1971.9,0.001]
[1771241799625,0.0011,1972.2,1971.9,0.49552161]
[1771241802033,0.0011,1972.2,1971.9,0.001]
[1771241803117,0.0011,1972.2,1972.0,0.001]
[1771241803323,0.0011,1972.1,1972.0,0.001]
[1771241809632,0.0011,1972.1,1971.8,0.001]
[1771241810911,0.0011,1972.1,1971.8,0.45268873]
[1771241815438,0.0011,1972.2,1971.8,0.001]
[1771241815635,0.0011,1972.2,1971.9,0.45168873]
[1771241817042,0.0011,1972.2,1971.9,0.45268873]
[1771241817447,0.0011,1972.1,1971.9,0.45268873]
[1771241817648,0.0011,1972.2,1971.9,0.001]
[1771241818117,0.0011,1972.2,1971.9,0.45268873]
[1771241818726,0.0011,1972.2,1971.9,0.001]
[1771241820314,0.46060407,1972.2,1971.9,0.001]
[1771241820743,7.87788029,1972.2,1971.9,0.001]
[1771241820942,0.45950407,1972.1,1971.9,0.001]
[1771241821442,0.0011,1972.2,1971.9,0.001]
[1771241826159,0.45950407,1972.1,1971.8,0.001]
[1771241826454,7.87678029,1972.0,1971.6,0.001]
[1771241826660,0.45950407,1972.0,1971.6,0.001]
[1771241828623,7.87788029,1972.2,1971.6,0.001]
[1771241828950,9.14550166,1972.2,1972.0,0.001]
[1771241829251,0.0011,1972.1,1971.6,0.001]
[1771241829418,0.45950407,1972.0,1971.6,0.001]
[1771241829620,7.87678029,1971.9,1971.7,0.001]
[1771241829824,7.87678029,1971.9,1971.5,0.001]
[1771241830126,0.45950407,1971.9,1971.5,0.001]
[1771241831331,1.72725486,1972.0,1971.5,0.001]
[1771241831923,0.45950407,1972.0,1971.5,0.001]
[1771241832452,9.14556937,1972.1,1971.5,0.001]
[1771241832851,0.45950407,1972.0,1971.5,0.001]
[1771241833418,0.45950407,1971.8,1971.1,0.45168873]
[1771241834649,8.58027622,1971.9,1971.1,0.45168873]
[1771241835142,1.163,1971.9,1971.1,0.45168873]
[1771241836629,0.0011,1972.1,1971.3,0.4812912]
[1771241837248,0.0011,1972.1,1971.5,0.4812912]
[1771241841362,0.0011,1972.1,1971.7,0.4812912]
[1771241842959,0.0011,1972.4,1972.1,0.4812912]
[1771241843138,0.0011,1972.4,1971.9,0.4812912]
[1771241843532,0.0011,1972.4,1971.6,7.41827622]
[1771241843533,0.46489214,1972.4,1971.7,0.4812912]
[1771241845142,0.0011,1972.4,1971.9,0.4812912]
[1771241845554,0.0011,1972.4,1971.7,0.4812912]
[1771241846473,0.46489214,1972.4,1971.7,0.4812912]
[1771241847474,0.0011,1972.4,1971.7,0.4812912]
[1771241851701,0.0011,1972.6,1972.0,0.4812912]
[1771241853384,0.0011,1972.3,1972.0,0.4812912]
[1771241853557,0.0011,1972.4,1971.9,0.4812912]
[1771241853755,0.0011,1972.6,1971.9,0.4812912]
[1771241856694,0.46489214,1972.6,1971.7,0.4812912]
[1771241861491,0.0011,1972.6,1971.7,0.4812912]
[1771241865079,0.0011,1972.6,1971.8,0.001]
[1771241865394,0.0011,1972.5,1971.9,0.46054825]
[1771241865979,0.0011,1972.5,1971.9,7.87568606]
[1771241866199,0.0011,1972.5,1972.0,0.46054825]
[1771241869803,0.0011,1972.8,1972.4,0.45857726]
[1771241874174,0.0011,1972.9,1972.4,0.45857726]
[1771241874412,0.0011,1973.0,1972.4,0.45857726]
[1771241877477,0.0011,1972.7,1972.4,0.45857726]
[1771241877701,0.0011,1973.0,1972.4,0.45857726]
[1771241878602,0.0011,1972.8,1972.4,0.45857726]
[1771241878806,0.0011,1973.0,1972.4,0.45857726]
[1771241880210,0.0011,1973.0,1972.5,7.41513781]
[1771241880506,0.0011,1973.1,1972.6,0.45857726]
[1771241882285,0.0011,1973.1,1972.3,7.41513781]
[1771241882513,0.0011,1973.1,1972.4,0.45857726]
[1771241882817,0.0011,1973.1,1972.6,0.45857726]
[1771241884518,0.0011,1973.2,1972.6,0.45857726]
[1771241884907,0.0011,1973.2,1972.8,0.45857726]
[1771241886109,0.4844929,1973.2,1972.6,0.45857726]
[1771241886420,0.4844929,1973.2,1972.5,1.21257726]
[1771241888320,1.75148111,1973.2,1972.5,1.21257726]
[1771241888544,1.75148111,1973.2,1972.4,7.41513781]
[1771241888545,0.4833929,1973.0,1972.3,0.45857726]
[1771241889018,0.4833929,1972.9,1972.1,1.21357726]
[1771241890011,0.4833929,1972.9,1972.6,0.001]
[1771241891626,0.0011,1973.2,1972.8,0.45857726]
[1771241891941,0.0011,1973.2,1972.9,7.41513781]
[1771241892692,0.0011,1973.3,1972.9,7.41513781]
[1771241893326,0.0011,1973.3,1972.8,0.45857726]
[1771241893528,0.0011,1973.3,1973.0,0.45857726]
[1771241893726,0.0011,1973.4,1973.0,0.45857726]
[1771241894622,0.0011,1973.6,1972.7,0.48737326]
[1771241901906,0.49645273,1973.6,1972.7,0.48737326]
[1771241902228,0.0011,1973.5,1972.7,0.48837326]
[1771241904725,0.49645273,1973.5,1972.7,0.48837326]
[1771241905115,0.49535273,1973.4,1972.7,0.001]
[1771241908326,0.49535273,1973.3,1972.7,0.001]
[1771241910035,0.49645273,1973.5,1972.7,0.48837326]
[1771241910449,0.49535273,1973.4,1972.7,0.001]
[1771241911948,0.49535273,1973.4,1972.7,0.48837326]
[1771241912544,0.49535273,1973.3,1972.7,0.001]
[1771241914239,0.49535273,1973.3,1972.8,0.001]
[1771241914451,0.49535273,1973.2,1972.8,0.001]
[1771241914644,1.26693455,1973.3,1972.8,0.001]
[1771241914936,1.45498565,1973.3,1972.8,0.001]
[1771241915136,0.1880511,1973.3,1972.8,0.001]
[1771241916332,1.45496448,1973.3,1972.8,0.001]
[1771241917045,0.1880511,1973.3,1972.8,0.001]
[1771241917251,1.45497185,1973.3,1972.8,0.001]
[1771241917739,0.1880511,1973.3,1972.8,0.001]
[1771241918242,1.2669175,1973.3,1972.8,0.001]
[1771241918450,0.1880511,1973.2,1972.8,0.001]
[1771241918653,1.2669175,1973.3,1972.8,0.001]
[1771241919752,8.67920712,1973.5,1972.8,0.501]
[1771241920719,8.67920712,1973.5,1972.8,0.001]
[1771241924857,0.0011,1973.5,1972.8,0.501]
[1771241925079,1.26788901,1973.5,1972.8,0.501]
[1771241925234,8.67921124,1973.5,1972.8,0.001]
[1771241926056,8.67937292,1973.5,1972.8,0.001]
[1771241926965,8.67937292,1973.5,1972.9,0.001]
[1771241927327,0.0011,1973.4,1972.9,0.001]
[1771241932232,0.0011,1973.4,1972.9,0.501]
[1771241933441,0.0011,1973.4,1972.9,0.001]
[1771241937839,7.41148391,1973.3,1972.9,0.001]
[1771241938768,7.41148391,1973.3,1973.0,0.001]
[1771241938942,8.67954543,1973.3,1973.0,0.001]
[1771241940867,7.41148391,1973.1,1972.6,0.001]
[1771241941047,7.41148391,1973.1,1972.0,8.32548391]
[1771241941048,1.156,1973.0,1972.3,0.501]
[1771241941243,7.41148391,1972.9,1972.3,0.501]
[1771241941580,1.156,1973.0,1972.4,0.501]
[1771241941774,8.67954543,1973.3,1972.5,0.5]
[1771241941775,1.157,1973.2,1972.5,0.5]
[1771241943552,1.157,1973.2,1972.7,0.5]
[1771241950886,1.157,1973.2,1972.8,0.001]
[1771241951082,1.157,1973.2,1972.8,0.501]
[1771241951945,0.657,1973.2,1972.8,0.501]
[1771241959683,0.0011,1973.3,1972.8,0.501]
[1771241963059,0.0011,1973.1,1972.8,0.501]
[1771241973501,0.0011,1973.2,1972.9,0.5]
[1771241974875,0.0011,1973.2,1972.9,0.501]
[1771241975204,0.0011,1973.1,1972.9,0.501]
[1771241976005,0.0011,1973.3,1973.0,0.5]
[1771241978086,0.0011,1973.3,1972.9,0.001]
[1771241979212,0.0011,1973.3,1972.9,0.501]
[1771241979779,0.0011,1973.3,1972.9,0.001]
[1771241981603,0.0011,1973.3,1972.9,0.501]
[1771241987325,0.0011,1973.3,1973.0,0.001]
[1771241987504,0.0011,1973.2,1973.0,0.001]
[1771241999130,0.0011,1973.2,1973.1,0.001]
[1771242000112,0.0011,1973.2,1972.9,0.001]
[1771242000336,0.0011,1973.2,1963.4,30.27069088]
[1771242000337,7.41020878,1973.1,1972.3,0.501]
[1771242000522,7.41020878,1972.9,1972.3,0.501]
[1771242000844,7.41020878,1972.9,1972.3,0.001]
[1771242001234,8.67742505,1972.9,1972.3,0.001]
[1771242001434,1.158,1973.1,1972.4,0.501]
[1771242001622,2.42505291,1973.1,1972.4,0.501]
[1771242002047,1.158,1973.1,1972.4,0.501]
[1771242002353,0.0011,1973.2,1972.6,0.5]
[1771242011258,0.0011,1973.2,1972.7,0.5]
[1771242012029,0.0011,1973.1,1972.7,0.5]
[1771242013947,0.0011,1973.2,1973.0,0.5]
[1771242016347,0.0011,1973.2,1972.6,0.501]
[1771242023766,0.0011,1973.1,1972.6,0.501]